Cogmind - Beta 12 --- EXPLORER MODE // 2023.09.30 @ 19:45:20 Player: Karp Result: Destroyed by S-10 Pest with Light Assault Rifle Performance ------------- Evolutions (2) 1000 Regions Visited (3) 600 Robots Destroyed (5) 25 Value Destroyed (152) 152 Prototype IDs (0) 0 Alien Tech Used (0) 0 Bonus (200) 200 TOTAL SCORE: 1977 Bonus ------- Pacifist 200 Cogmind --------- Core Integrity 0/550 Matter 300/300 Energy 99/100 System Corruption 0% Temperature Cool (0) Movement Core (50) Location -8/Materials Parts ------- > --- POWER (1) -------- (None) > --- PROPULSION (4) --- (None) > --- UTILITY (5) ------ (None) > --- WEAPON (2) ------- (None) > --- INVENTORY (5) ---- Light Ion Engine Titanium Leg Titanium Leg Assault Rifle Spear Peak State ------------ > --- POWER ------------ (None) > --- PROPULSION ------- (None) > --- UTILITY ---------- Improved Terrain Scanner Seismic Detector Core Analyzer > --- WEAPON ----------- Spear > --- INVENTORY -------- Light Ion Engine Titanium Leg Titanium Leg Assault Rifle Spear [Rating: 13] Favorites ----------- Power None Propulsion Aluminum Leg Leg Aluminum Leg Utility Improved Terrain Scanner Device Improved Terrain Scanner Storage Large Storage Unit Processor Core Analyzer Weapon Spear Piercing Weapon Spear Build | -11 -10 -9 -8 ------- Run | Jun Mat Mat Mat Slots Evolved 5 | . 1 2 2 Power . | . . . . Propulsion 2 | . 1 1 . Utility 3 | . . 1 2 Weapon . | . . . . Parts Attached 13 | . 3 4 6 Power . | . . . . Engine . | . . . . Core . | . . . . Reactor . | . . . . Propulsion 7 | . 3 4 . Treads . | . . . . Leg 7 | . 3 4 . Wheel . | . . . . Hover . | . . . . Flight . | . . . . Utility 4 | . . . 4 Device 2 | . . . 2 Storage 1 | . . . 1 Processor 1 | . . . 1 Hackware . | . . . . Protection . | . . . . Artifact . | . . . . Weapon 2 | . . . 2 Energy Gun . | . . . . Energy Cannon . | . . . . Ballistic Gun . | . . . . Ballistic Cannon . | . . . . Launcher . | . . . . Special Weapon . | . . . . Impact Weapon . | . . . . Slashing Weapon . | . . . . Piercing Weapon 2 | . . . 2 Special Melee Weapon . | . . . . Unidentified Prototypes . | . . . . Parts Lost 3 | . . . 3 Power . | . . . . Propulsion . | . . . . Utility 2 | . . . 2 Weapon 1 | . . . 1 Highest Loss Streak 3 | . . . 3 To Critical Strikes . | . . . . Average Slot Usage (%) 18 | . 32 5 15 Leg 12 | . 32 5 . Device 1 | . . . 4 Processor 1 | . . . 3 Piercing Weapon 2 | . . . 7 Naked Turns 207 | . 29 156 22 Heaviest Build 4 | . . . 4 Greatest Support 43 | 3 30 43 3 Greatest Overweight (x) 1 | . . . 1 Average Overweight (x) . | . . . . Largest Inventory Capacity 15 | 5 5 5 15 Average Capacity 5 | 5 5 5 5 Most Carried 5 | . 3 4 5 Average Carried 3 | . 2 3 4 Final Capacity 5 | 5 5 5 5 Final Carried 5 | . 3 4 5 Class Distribution -------------------- 100% | Hacker-Mutant Dominant Class ---------------- Hacker-Mutant | -10/Materials Hacker-Mutant | -9/Materials Hacker-Mutant | -8/Materials Resources | -11 -10 -9 -8 ----------- Run | Jun Mat Mat Mat Matter Collected 316 | . 87 161 68 Remotely . | . . . . Salvage Created 199 | . . 20 179 Parts 14 | . . 4 10 Haulers Intercepted . | . . . . Recyclers Shooed . | . . . . Parts Field Recycled . | . . . . Retrieved Matter . | . . . . Parts Self-Destructed . | . . . . Prevented . | . . . . Kills | -11 -10 -9 -8 ------- Run | Jun Mat Mat Mat Combat Hostiles Destroyed 4 | . . . 4 Melee 4 | . . . 4 Classes Destroyed 4 | . . 1 3 Builder 1 | . . 1 . Swarmer 1 | . . . 1 Grunt 1 | . . . 1 Sentry 2 | . . . 2 Best Kill Streak 1 | . . 1 1 Combat Bots Only 1 | . . . 1 Max Kills in Single Turn 1 | . . 1 1 Gunslinging . | . . . . Exploded . | . . . . Melee 1 | . . . 1 Uniques/NPCs Destroyed . | . . . . Combat | -11 -10 -9 -8 -------- Run | Jun Mat Mat Mat Damage Taken 1151 | . 131 368 652 Core 1043 | . 124 368 551 Absorbed by Shields . | . . . . Core Remaining (%) 52 | 100 50 8 . Volleys Fired . | . . . . Largest . | . . . . Hottest . | . . . . Shots Fired . | . . . . Gun . | . . . . Cannon . | . . . . Launcher . | . . . . Special . | . . . . Kinetic . | . . . . Thermal . | . . . . Explosive . | . . . . Electromagnetic . | . . . . Robot Hit Streak . | . . . . Robot Miss Streak . | . . . . Penetration Max . | . . . . Secondary Targets . | . . . . Shots Hit Robots 12 | . . . 12 Core Hits 7 | . . 2 5 Critical Kills . | . . . . Critical Parts Destroyed . | . . . . Critical Strikes . | . . . . Melee Attacks 12 | . . . 12 Impact . | . . . . Slashing . | . . . . Piercing 12 | . . . 12 Sneak Attacks 1 | . . . 1 Combat Hostiles . | . . . . Follow-up Attacks . | . . . . Damage Inflicted 420 | . . 40 380 Guns . | . . . . Cannons . | . . . . Explosions . | . . . . Melee 380 | . . . 380 Ramming 40 | . . 40 . Kinetic . | . . . . Thermal . | . . . . Explosive . | . . . . Electromagnetic . | . . . . Impact . | . . . . Slashing . | . . . . Piercing 380 | . . . 380 Highest Corruption 4 | . . 4 . Average Corruption 3 | . . 3 . Corruption Purged . | . . . . Corruption Blocked . | . . . . Overload Shots . | . . . . Overflow Damage 27 | . . . 27 Projectiles . | . . . . Explosions . | . . . . Melee 27 | . . . 27 Knockbacks . | . . . . Impact . | . . . . Kinetic . | . . . . Secondary . | . . . . Self-Inflicted Damage 20 | . . 20 . Shots . | . . . . Rammed 5 | . . 5 . Targets Rammed 5 | . . 5 . Kicked . | . . . . Crushed . | . . . . Highest Temperature . | . . . . Average Temperature . | . . . . Received Heat Transfer 501 | . 123 63 315 Siege Activations . | . . . . Robots Corrupted . | . . . . Combat Hostiles . | . . . . Parts Fried . | . . . . Impact Corruptions . | . . . . Robots Melted . | . . . . Combat Hostiles . | . . . . Parts Melted . | . . . . Heat Transferred . | . . . . Parts Sabotaged . | . . . . Parts Stolen . | . . . . Parts Stripped . | . . . . Power Chain Reactions . | . . . . Missiles Intercepted . | . . . . Alert | -11 -10 -9 -8 ------- Run | Jun Mat Mat Mat Peak Influence 360 | . 30 300 360 Initial 90 | . . 8 90 Average 111 | . 9 122 203 Maximum Alert Level 1 | . . 1 1 Low Security (%) 79 | 100 100 71 65 Level 1 20 | . . 28 34 Level 2 . | . . . . Level 3 . | . . . . Level 4 . | . . . . Level 5 . | . . . . High Security . | . . . . Max Security . | . . . . Squads Dispatched 6 | . . 5 1 Investigation . | . . . . Extermination . | . . . . Reinforcement 6 | . . 5 1 Assault . | . . . . Garrison . | . . . . Intercept . | . . . . Searches Triggered . | . . . . Construction Impeded . | . . . . Haulers Reinforced . | . . . . Active Scanning Responses . | . . . . Cargo Convoy Interrupts . | . . . . Stealth | -11 -10 -9 -8 --------- Run | Jun Mat Mat Mat Distress Signals 3 | . . 3 . Communications Jammed . | . . . . Distress Signals . | . . . . Times Spotted 63 | . 9 29 25 Peak Tracking Total 15 | . 6 15 12 Tactical Retreats 5 | . . 4 1 Traps | -11 -10 -9 -8 ------- Run | Jun Mat Mat Mat Traps Triggered 2 | . 2 . . Indirectly . | . . . . Trap Hack Attempts . | . . . . Triggered . | . . . . Disarmed . | . . . . Reprogrammed . | . . . . Reused . | . . . . Traps Extracted . | . . . . Installed . | . . . . Triggered . | . . . . Machines | -11 -10 -9 -8 ---------- Run | Jun Mat Mat Mat Machines Disabled . | . . . . Max in Single Turn . | . . . . Machines Repaired . | . . . . Machines Sabotaged . | . . . . Overloaded Fab Kills . | . . . . Hacking | -11 -10 -9 -8 --------- Run | Jun Mat Mat Mat Machines Accessed 5 | . 1 4 . Terminals 4 | . . 4 . Fabricators . | . . . . Repair Stations . | . . . . Recycling Units 1 | . 1 . . Scanalyzers . | . . . . Garrison Access . | . . . . Total Hacks 11 | . 1 10 . Successful 9 | . 1 8 . Failed 2 | . . 2 . Catastrophic . | . . . . Database Lockouts . | . . . . Manual 3 | . . 3 . Terminals 10 | . . 10 . Fabricators . | . . . . Repair Stations . | . . . . Recycling Units 1 | . 1 . . Scanalyzers . | . . . . Garrison Access . | . . . . Terminal Hacks 8 | . . 8 . Record 5 | . . 5 . Emergency Access Points 1 | . . 1 . Locate Traps 2 | . . 2 . Fabricator Hacks . | . . . . Repair Station Hacks . | . . . . Recycling Unit Hacks 1 | . 1 . . Retrieve Matter 1 | . 1 . . Scanalyzer . | . . . . Garrison Access Hacks . | . . . . Unauthorized Hacks . | . . . . Terminals . | . . . . Fabricators . | . . . . Repair Stations . | . . . . Recycling Units . | . . . . Scanalyzers . | . . . . Garrison Access . | . . . . Data Cores Recovered . | . . . . Used . | . . . . Hacking Detections 2 | . . 2 . Full Trace Events . | . . . . Feedback Events . | . . . . Feedback Blocked . | . . . . Robot Schematics Acquired . | . . . . Robots Built . | . . . . Authchips . | . . . . Time . | . . . . Total Robot Build Rating . | . . . . Part Schematics Acquired . | . . . . Parts Built . | . . . . Authchips . | . . . . Time . | . . . . Total Part Build Rating . | . . . . Parts Repaired . | . . . . Time . | . . . . Parts Recycled . | . . . . Recycled Matter . | . . . . Retrieved Matter . | . . . . Retrieved Components . | . . . . Parts Scanalyzed . | . . . . Part Schematics Acquired . | . . . . Parts Damaged . | . . . . Bothacking | -11 -10 -9 -8 ------------ Run | Jun Mat Mat Mat Used RIF Installer . | . . . . Robots Hacked . | . . . . Non-combat . | . . . . Combat . | . . . . Robot Hacks Applied . | . . . . Relay Couplers Released . | . . . . Fabnet Peak Effective % . | . . . . Robots Rewired . | . . . . Allies Hacked . | . . . . Hacks Repelled . | . . . . Allies | -11 -10 -9 -8 -------- Run | Jun Mat Mat Mat Total Allies . | . . . . Largest Group . | . . . . Highest-Rated Group . | . . . . Highest-Rated Ally . | . . . . Total Orders . | . . . . Ally Attacks . | . . . . Total Damage . | . . . . Kills . | . . . . Allies Corrupted . | . . . . Allies Melted . | . . . . Intel | -11 -10 -9 -8 ------- Run | Jun Mat Mat Mat Robot Analysis Total . | . . . . Derelict Logs Recovered . | . . . . Drone Launches . | . . . . Drone Recoveries . | . . . . Exploration | -11 -10 -9 -8 ------------- Run | Jun Mat Mat Mat Turns Passed 701 | 9 244 191 257 Spaces Moved 947 | 18 198 318 413 Core 781 | 18 55 295 413 Treads . | . . . . Legs 166 | . 143 23 . Wheels . | . . . . Hover . | . . . . Flight . | . . . . Fastest Speed 50 | 50 50 50 50 Average Speed 62 | 50 100 55 50 Slowest Speed 120 | 50 120 120 100 Overloaded Moves . | . . . . Propulsion Burnouts . | . . . . Robots Hopped . | . . . . Cave-ins Triggered . | . . . . Exploration Rate (%) 34 | 3 45 49 39 Regions Visited 3 Branch Regions . Pre-discovered Areas . | . . . . Known Exits Taken 3 | 1 1 1 . Unknown Exits Taken . | . . . . Scrap Searched . | . . . . Spaces Dug . | . . . . Terrain Destroyed . | . . . . Melee . | . . . . Projectile . | . . . . AOE . | . . . . Terrain Rammed . | . . . . Walls Destroyed . | . . . . Machines Disabled . | . . . . Actions | -11 -10 -9 -8 --------- Run | Jun Mat Mat Mat Total 1034 | 17 240 332 445 Wait 40 | . 37 3 . Move 944 | 17 197 317 413 Hop . | . . . . Pick Up 9 | . 3 . 6 Fast Attach 13 | . 3 4 6 Attach . | . . . . Detach 2 | . . 2 . Swap . | . . . . Drop 9 | . . 1 8 Fire . | . . . . Melee 12 | . . . 12 Ram 5 | . . 5 . Kick . | . . . . Crush . | . . . . Escape Stasis . | . . . . Rewire . | . . . . Trap . | . . . . Miscellaneous . | . . . . Route ------- -11/Junkyard -10/Materials -9/Materials -8/Materials History --------- Turn | Location | Event 3 | -11/Junkyard | Identified exit to Materials 3 | -11/Junkyard | Discovered exit to Materials (range 15) 10 | -11/Junkyard | Entered Materials 10 | -10/Materials | Evolved 1 slot: Propulsion x1 252 | -10/Materials | Identified exit to Materials 252 | -10/Materials | Discovered exit to Materials (range 3) 254 | -10/Materials | Entered another Materials area 254 | -9/Materials | Evolved 2 slots: Propulsion x1, Utility x1 299 | -9/Materials | Released all parts (2) 319 | -9/Materials | Build established: Hacker-Mutant 408 | -9/Materials | Core integrity fell below 50% 425 | -9/Materials | Core integrity fell below 20% 437 | -9/Materials | Identified exit to Materials 437 | -9/Materials | Discovered exit to Materials (range 16) 445 | -9/Materials | Entered another Materials area 445 | -8/Materials | Evolved 2 slots: Utility x2 652 | -8/Materials | Core integrity fell below 50% 684 | -8/Materials | Core integrity fell below 20% 702 | -8/Materials | Destroyed by S-10 Pest with Light Assault Rifle Last Messages --------------- Core Analyzer destroyed. Critical hit (Burn: +37). Penetrated by Slug. G-47 Trooper destroyed. Slug penetrates Y-45 Defender. Y-45 Defender destroyed. Acquired 25 matter. Penetrated by Slug. K-01 Serf collects debris. Slug penetrates A-02 Transporter. Imp. Terrain Scanner destroyed. S-10 Pest destroyed. R-06 Scavenger collects Lgt. Armor Plating. K-01 Serf collects debris. R-06 Scavenger collects Lgt. Nuclear Core. K-01 Serf collects debris. Slug penetrates Wall. K-01 Serf cleans the Electrolysis Chamber. S-10 Pest destroyed. Spear destroyed. Map ----- +----------------------------------------------------+ | ????????????????????????????????????????? ??? | | ????????????????????????????????????????# [! ???? | | ????????????????????????????????????????# [! ???? | | ????????????????????????????????????????# !!????? | | ????????????????????????????????????????# ????? | | ????????????????????????????????????????? ?????? | | ????????????????????????????????????????? ?????? | | ?????????????????????????????????#########+#??##+# | | ?????????????????????????????????# ## ##?# | | ?????????????????????????????????# # ### | | ??????????????????????????#####??# / | | ?????????????????????????? #??# # ! ## | | ?????????????????????????? #??# ## ### | | ?????????????????????????? #??# ## #?# "" | | ??????????????????????????# #??#########+#?# "" | | ??????????????????????????# #???????# ? # "" | | ??????????????????????????# #???????# " # | | ??????????????????????????+ #???????# T + | | ??????????????????????????# #???????# " # | | ??????????????????????????# #???????# ??# | | ?????????????????##???????# #???????# ????### # | | ????????????????## ######## ##??????#????????# # | | ????????????????# Y # #???#????????????# # | | ????????????????# #g #?????############+# | | ????????????????# s g ####### # | | ????????????????# ! @# # | | ????????????????# *** # # | | ????????????????# *** # =% # """ "" | | ????????????????# ] ** ########### # """ "" | | ????????????????# #?????????## ## """%"" | | ????????????????###########?########## ## ! ! | | ????????????????????????????# # ## [ !%= | | ????????????????????????????# """ + #####/### | | ????????????????????????????# """ # | | ????????????????????????????# """ # | | ????????????????????????????# # | | ????????????????????????????# """ ##### ## | | ???????????????????????????## """ ##??# # | | ????????????????????????????# """ #???# # | | ????????????????????????????# #???# + | | ????????????????????????????###?#######??# # | | ??????????????????????????????????######## # | | ??????????????????????????? #? | | ??????????????????????????? ######"### | | ??????????????????????????? ???# *% | | ???????????????????????????? ????# """ | | ??????????????????????????????"" ?"?????# """ | | ???????????????????????????????"??? ??????# """ | | ??????????????????????????????????????? ??# | | ??????????????????????????????????????????# """ | +----------------------------------------------------+ Best States ------------- Heat Dissipation 31 Energy Generation 5 Energy Capacity 100 Matter Stores 300 Matter Capacity 300 Sight Range 16 Terrain Scan Range 16 Terrain Scan Density 10 Resistance: KI 35 Resistance: TH 35 Resistance: EX 35 Resistance: EM 35 Resistance: I 35 Resistance: S 35 Resistance: P 35 Evasion (%) 55 Core Analysis 6 Offensive Hacking 20 Item Schematics ----------------- None Robot Schematics ------------------ None Fabricated ------------ Nothing Alien Tech Used ----------------- None Achievements -------------- Close Call Challenges ------------ None Game ------ Seed HeavyTargetingCompactor Manual? 0 Play Time 00:29:27 Cumulative 5.8 hours Start 2023.09.30 @ 18:40:35 End 2023.09.30 @ 19:45:20 Sessions 6 Manual Loads 0 Difficulty Explorer Special Mode None Game No. 8 Rogue 0 Adventurer 2 Explorer 6 Win Type - Total 0 Types 0/0/0/0/0/0/0/0/0 Lore% 16 Gallery% 11 Achievement% 10 Wizard Run 0 Options --------- ASCII 0 Keyboard 0 Movement Numpad Keybinds 0 Fullscreen 1 Font 36/Terminus Map View 76x50 Tactical HUD 0 Map Filters NONE Filters NONE Steam 1 RUN: c04c5f81-30bc-4d43-85dc-72fcdb17ed77